[Event "FIDE World Cup O12-B 2024"]
[Site "Batumi"]
[Date "2024.06.24"]
[Round "2.1"]
[White "Tatvidze, Davit"]
[Black "Aadik Theophane Lenin"]
[Result "1-0"]
[ECO "A26"]
[WhiteElo "2000"]
[BlackElo "1852"]
[Annotator "NA RC"]
[PlyCount "109"]
[EventDate "2024.06.23"]
[EventType "swiss"]
[EventCountry "GEO"]
[SourceTitle "playchess.com"]
[Source "ChessBase"]
[SourceQuality "1"]
[TimeControl "5400+30"]

1. c4 {[%emt 0:00:08]} Nf6 {[%emt 0:00:16]} 2. Nc3 {[%emt 0:00:04]} g6 {[%emt 0:00:08]} 3. g3 {[%emt 0:00:03]} Bg7 {[%emt 0:00:08]} 4. Bg2 {[%emt 1:32:15]} O-O {[%emt 0:00:09]} 5. Nf3 {[%emt 0:00:00]} d6 {[%emt 0:00:09]} 6. O-O {[%emt 0:00:00]} e5 {[%emt 0:03:23]} 7. d3 {[%emt 0:00:00]} Nc6 {[%emt 0:00:59]} 8. Rb1 {[%emt 0:00:00]} a5 {[%emt 0:00:04]} 9. a3 {[%emt 0:00:00]} Re8 {[%emt 0:00:07]} 10. Bg5 {[%emt 0:00:00]} h6 {[%emt 0:01:14]} 11. Bxf6 {[%emt 0:00:00]} Bxf6 {[%emt 0:00:03]} 12. b4 {[%emt 0:00:00]} axb4 {[%emt 0:04:16]} 13. axb4 {[%emt 0:00:00]} Be6 {[%emt 0:09:24] A26: English Opening vs King's Indian with ...Nc6 and d3.} 14. Nd2 {[%emt 0:00:00]} Qc8 {[%emt 0:04:49]} 15. Nd5 {[%emt 0:00:00]} Bg7 {[%emt 0:01:50]} 16. b5 {[%emt 0:00:00]} Ne7 {[%emt 0:00:19]} 17. Nxe7+ {[%emt 0:00:00]} Rxe7 {[%emt 0:00:02]} 18. Qc2 {[%emt 0:00:00]} Bh3 {[%emt 0:02:21]} 19. Bxh3 {[%emt 0:00:00]} Qxh3 {[%emt 0:00:02]} 20. Ra1 {[%emt 0:00:00]} Ree8 {[%emt 0:00:09]} 21. e4 {[%emt 0:08:30]} f5 {[%emt 0:03:29] [#]} (21... h5 $11) 22. b6 {[%emt 0:00:00]} c5 {[%emt 0:05:54]} 23. Ra7 {[%emt 0:00:00]} Rab8 {[%emt 0:00:06]} 24. Qa4 {[%emt 0:00:00]} Re7 {[%emt 0:00:07]} 25. Ra8 {[%emt 0:00:00]} Rf8 {[%emt 0:00:11]} 26. Rxf8+ {[%emt 0:00:00]} Bxf8 {[%emt 0:00:03]} 27. exf5 {[%emt 0:00:00]} gxf5 {[%emt 0:00:14] [#]} 28. Qd1 $1 {[%emt 0:00:00]} h5 {[%emt 0:18:28]} (28... Rf7 $142) 29. Qf3 {[%emt 0:00:00]} Qg4 {[%emt 0:01:11]} 30. Qd5+ {[%emt 0:00:00]} Rf7 {[%emt 0:00:06]} 31. Nf3 {[%emt 0:00:00]} f4 {[%emt 0:02:23] [#]} 32. h3 $18 {[%emt 0:00:00]} Qg6 {[%emt 0:05:15]} 33. Kh2 {[%emt 0:00:00]} Kh8 {[%emt 0:02:56]} 34. Qe4 {[%emt 0:00:00]} fxg3+ {[%emt 0:01:07]} 35. fxg3 {[%emt 0:00:00]} Qxe4 {[%emt 0:05:06]} 36. dxe4 {[%emt 0:00:00]} h4 {[%emt 0:00:14]} 37. gxh4 {[%emt 0:04:22]} Be7 {[%emt 0:00:10]} 38. Kg2 {[%emt 0:01:11]} Rf4 {[%emt 0:03:27]} 39. Nd2 {[%emt 0:02:24]} Bxh4 {[%emt 0:02:33]} 40. Rxf4 {[%emt 0:00:28]} exf4 {[%emt 0:00:01]} 41. Kf3 {[%emt 0:00:34]} Bd8 {[%emt 0:00:18]} 42. Kxf4 {[%emt 0:00:05]} Bxb6 {[%emt 0:00:04]} 43. Kf5 {[%emt 0:00:20]} Bd8 {[%emt 0:01:03]} 44. Ke6 {[%emt 0:00:51]} Bg5 {[%emt 0:00:35]} 45. Nf3 {[%emt 0:00:28]} Bf4 {[%emt 0:00:54]} 46. Nh4 {[%emt 0:00:28]} Kh7 {[%emt 0:04:27]} 47. Nf5 {[%emt 0:00:11]} b5 {[%emt 0:03:20]} 48. cxb5 {[%emt 0:00:11]} c4 {[%emt 0:00:01]} 49. b6 {[%emt 0:00:56]} c3 {[%emt 0:00:04]} 50. b7 {[%emt 0:00:38]} d5 {[%emt 0:00:01]} 51. e5 {[%emt 0:00:06]} c2 {[%emt 0:00:31]} 52. b8=Q {[%emt 0:00:07]} c1=Q {[%emt 0:22:19]} 53. Qb7+ {[%emt 0:00:07]} Kg6 {[%emt 0:00:00]} 54. Qg7+ {[%emt 0:00:05]} Kh5 {[%emt 0:00:00]} 55. Qg4# {[%emt 0:00:06]} 1-0

[Event "FIDE World Cup O12-B 2024"]
[Site "Batumi"]
[Date "2024.06.24"]
[Round "2.2"]
[White "Gabadadze, Gabriel"]
[Black "Yusupov, Rauf"]
[Result "1-0"]
[ECO "C43"]
[WhiteElo "1975"]
[BlackElo "1800"]
[Annotator "NA RC"]
[PlyCount "113"]
[EventDate "2024.06.23"]
[EventType "swiss"]
[EventCountry "GEO"]
[SourceTitle "playchess.com"]
[Source "ChessBase"]
[SourceQuality "1"]
[TimeControl "5400+30"]

1. e4 {[%emt 0:00:01]} e5 {[%emt 0:00:05]} 2. Nf3 {[%emt 0:00:07]} Nf6 {[%emt 0:00:03]} 3. d4 {[%emt 0:00:11]} Nxe4 {[%emt 0:00:05]} 4. Bd3 {[%emt 0:00:08]} d5 {[%emt 0:00:09]} 5. Nxe5 {[%emt 0:00:12]} Be7 {[%emt 0:01:18]} 6. Nd2 {[%emt 0:01:58]} Nxd2 {[%emt 0:03:13] C43: Petroff Defence: 3 d4.} 7. Bxd2 {[%emt 0:00:20]} Nd7 {[%emt 0:09:12]} 8. Qh5 {[%emt 0:04:58]} Nxe5 {[%emt 0:03:24]} 9. dxe5 {[%emt 0:00:58]} Be6 {[%emt 0:02:32]} 10. f4 {[%emt 0:07:34]} g6 {[%emt 0:03:03]} 11. Qf3 {[%emt 0:01:34]} Qd7 {[%emt 0:00:34]} 12. f5 {[%emt 0:03:04]} Bxf5 {[%emt 0:05:05]} 13. Bxf5 {[%emt 0:00:26]} Qxf5 {[%emt 0:00:04]} 14. Qxf5 {[%emt 0:05:42]} gxf5 {[%emt 0:00:06]} 15. O-O {[%emt 0:02:17]} O-O-O {[%emt 0:13:19]} ({Black should try} 15... h5 $11) 16. Rxf5 {[%emt 0:02:55]} Bc5+ {[%emt 0:01:29]} 17. Kh1 {[%emt 0:01:42]} Rd7 {[%emt 0:04:30]} 18. Raf1 {[%emt 0:01:51]} Re8 {[%emt 0:00:24]} 19. Bf4 $1 {[%emt 0:04:22]} (19. Rxf7 Rxe5 20. Rxd7 Kxd7 $11) 19... Rde7 {[%emt 0:02:44]} 20. Rd1 {[%emt 0:02:42]} c6 {[%emt 0:01:02]} 21. Bg3 {[%emt 0:01:36]} (21. g4 $16) 21... Bb6 {[%emt 0:03:16]} 22. Re1 {[%emt 0:13:52]} Bc7 {[%emt 0:04:22]} 23. Kg1 $11 {[%emt 0:01:20]} Ba5 {[%emt 0:06:42]} 24. Re2 {[%emt 0:05:08]} Bc7 {[%emt 0:03:03]} 25. Kf2 {[%emt 0:05:20]} c5 {[%emt 0:08:53]} 26. Rh5 {[%emt 0:06:49]} d4 {[%emt 0:04:34]} 27. Rxh7 {[%emt 0:03:04]} c4 {[%emt 0:00:41]} 28. Rh4 {[%emt 0:07:11]} f6 {[%emt 0:02:43]} 29. c3 {[%emt 0:03:35]} fxe5 {[%emt 0:03:05]} 30. cxd4 {[%emt 0:00:15]} Bb6 {[%emt 0:00:09]} 31. Rc2 {[%emt 0:01:59]} Bxd4+ {[%emt 0:00:13]} 32. Ke2 {[%emt 0:00:42]} b5 {[%emt 0:01:06]} 33. Rh6 {[%emt 0:01:34]} Re6 {[%emt 0:04:01]} 34. Rh5 {[%emt 0:00:50]} Kb7 {[%emt 0:03:00]} 35. Rg5 {[%emt 0:00:30]} a5 {[%emt 0:01:21]} 36. a4 {[%emt 0:02:09]} Kb6 {[%emt 0:03:14]} 37. axb5 {[%emt 0:00:41]} Kxb5 {[%emt 0:00:21]} 38. Rg7 {[%emt 0:01:31]} Kb4 {[%emt 0:01:00]} 39. Rc7 {[%emt 0:01:20]} c3 {[%emt 0:05:03]} 40. bxc3+ {[%emt 0:00:35]} Kb3 {[%emt 0:00:09]} 41. cxd4 {[%emt 0:00:34]} exd4+ {[%emt 0:00:18]} 42. Kd3 {[%emt 0:00:24]} Re3+ {[%emt 0:00:24]} 43. Kxd4 {[%emt 0:00:09]} R3e4+ {[%emt 0:01:03]} 44. Kd5 {[%emt 0:00:13]} Re3 {[%emt 0:00:47]} 45. R2c6 {[%emt 0:03:09]} Rd3+ {[%emt 0:00:30]} 46. Kc5 {[%emt 0:00:14]} a4 {[%emt 0:00:28]} 47. Rb7+ {[%emt 0:01:00]} Ka2 {[%emt 0:00:29]} 48. Rf7 {[%emt 0:02:10]} Rd2 {[%emt 0:00:28]} 49. Ra6 {[%emt 0:01:32]} a3 {[%emt 0:00:40]} 50. Rf3 {[%emt 0:01:30]} Rc8+ {[%emt 0:00:31]} 51. Kb6 {[%emt 0:00:13]} Rb2+ {[%emt 0:00:26]} 52. Ka7 {[%emt 0:00:10]} Rb3 {[%emt 0:00:27]} 53. Bd6 {[%emt 0:00:43]} Rcc3 {[%emt 0:00:37]} 54. Rxc3 {[%emt 0:00:10]} Rxc3 {[%emt 0:00:01]} 55. Rxa3+ {[%emt 0:00:16]} Rxa3+ {[%emt 0:00:05]} 56. Bxa3 {[%emt 0:00:04]} Kxa3 {[%emt 0:00:04]} 57. h4 {[%emt 0:00:08]} 1-0

[Event "FIDE World Cup O12-B 2024"]
[Site "Batumi"]
[Date "2024.06.24"]
[Round "2.3"]
[White "Zhang, Haoxuan(Zj)"]
[Black "Ambartsumyan, Yuri"]
[Result "1/2-1/2"]
[ECO "C08"]
[WhiteElo "1907"]
[BlackElo "1750"]
[Annotator "NA RC"]
[PlyCount "157"]
[EventDate "2024.06.23"]
[EventType "swiss"]
[EventCountry "GEO"]
[SourceTitle "playchess.com"]
[Source "ChessBase"]
[SourceQuality "1"]
[TimeControl "5400+30"]

1. e4 {[%emt 0:00:04]} e6 {[%emt 0:00:03]} 2. d4 {[%emt 0:00:08]} d5 {[%emt 0:00:01]} 3. Nd2 {[%emt 0:00:42]} Be7 {[%emt 0:00:07]} 4. Ngf3 {[%emt 0:01:29]} c5 {[%emt 0:00:04]} 5. exd5 {[%emt 0:00:26]} exd5 {[%emt 0:00:10]} 6. Bb5+ {[%emt 0:02:27]} Bd7 {[%emt 0:00:27]} 7. Bxd7+ {[%emt 0:02:36]} Nxd7 {[%emt 0:00:10]} 8. O-O {[%emt 0:01:16]} Ngf6 {[%emt 0:00:03]} 9. c3 {[%emt 0:00:12]} O-O {[%emt 0:00:35]} 10. dxc5 {[%emt 0:02:51]} Nxc5 {[%emt 0:02:37]} 11. Nb3 {[%emt 0:00:13]} Nfe4 {[%emt 0:00:46]} 12. Be3 {[%emt 0:03:28]} Qd7 {[%emt 0:04:55] C08: French Tarrasch: 3...c5 4 exd5 exd5 sidelines.} 13. Qc2 {[%emt 0:03:34]} Rfd8 {[%emt 0:00:44]} 14. Nbd4 {[%emt 0:04:25]} Rac8 {[%emt 0:00:42]} 15. Rad1 {[%emt 0:01:25]} Bf6 {[%emt 0:00:35]} 16. Rfe1 {[%emt 0:04:14]} b5 {[%emt 0:02:45]} 17. a3 {[%emt 0:04:33]} a6 {[%emt 0:02:47]} 18. Nb3 {[%emt 0:02:30]} Nxb3 {[%emt 0:07:45]} 19. Qxb3 {[%emt 0:00:02]} Nc5 {[%emt 0:13:52]} 20. Qc2 {[%emt 0:01:50]} Ne6 {[%emt 0:00:48]} 21. Qf5 {[%emt 0:01:22]} Ng5 {[%emt 0:02:19]} 22. Nd4 {[%emt 0:04:39]} Bxd4 {[%emt 0:01:26]} 23. Qxg5 {[%emt 0:01:59]} Bf6 {[%emt 0:00:47]} 24. Qh5 {[%emt 0:00:44]} Qc6 {[%emt 0:05:22]} 25. Bd4 {[%emt 0:01:10]} Bxd4 {[%emt 0:03:11]} 26. Rxd4 {[%emt 0:00:27]} Rd7 {[%emt 0:00:59]} 27. h3 {[%emt 0:01:15]} h6 {[%emt 0:00:14]} 28. Re3 {[%emt 0:01:03]} Rcd8 {[%emt 0:05:34]} 29. Rg3 {[%emt 0:01:40]} Kh7 {[%emt 0:03:17]} 30. Qe5 $14 {[%emt 0:02:12]} g6 {[%emt 0:10:27]} 31. Rh4 {[%emt 0:04:09]} Qd6 {[%emt 0:00:17]} 32. Qe3 {[%emt 0:00:54]} Qf8 {[%emt 0:00:45]} 33. Rf3 {[%emt 0:00:36]} Re7 {[%emt 0:01:04]} 34. Rxh6+ {[%emt 0:05:37]} Kg7 {[%emt 0:01:02]} 35. Qd2 {[%emt 0:00:43]} Re4 {[%emt 0:01:26]} 36. Rg3 {[%emt 0:04:42]} d4 {[%emt 0:06:52]} 37. Rh5 {[%emt 0:03:20]} Kg8 {[%emt 0:00:22]} 38. cxd4 {[%emt 0:05:57]} Rexd4 {[%emt 0:02:41]} 39. Qc3 {[%emt 0:00:49]} b4 {[%emt 0:00:54]} 40. axb4 {[%emt 0:00:18]} Qxb4 {[%emt 0:00:23]} 41. Rc5 {[%emt 0:04:44]} Qxc3 {[%emt 0:02:29]} 42. bxc3 {[%emt 0:00:10]} Rf4 {[%emt 0:01:35]} 43. Ra5 {[%emt 0:01:23]} Rd6 {[%emt 0:00:45]} 44. Re3 {[%emt 0:00:40]} Rc4 {[%emt 0:00:11]} 45. Kf1 {[%emt 0:00:42]} Kg7 {[%emt 0:00:41]} 46. Ke2 {[%emt 0:00:24]} Rc7 {[%emt 0:01:40]} 47. Rd3 {[%emt 0:00:56]} Rb6 {[%emt 0:00:05]} 48. Ra2 {[%emt 0:00:46]} Rc5 {[%emt 0:00:24]} 49. Kd2 {[%emt 0:00:26]} a5 {[%emt 0:00:31]} 50. Kc2 {[%emt 0:00:33]} Rf5 {[%emt 0:00:19]} 51. f3 {[%emt 0:01:04]} Re5 {[%emt 0:00:04]} 52. c4 {[%emt 0:01:11]} Rb4 {[%emt 0:03:11]} 53. Kc3 {[%emt 0:00:24]} Rc5 {[%emt 0:00:19]} 54. Rd4 {[%emt 0:00:06]} Rb1 {[%emt 0:02:43]} 55. Rc2 {[%emt 0:01:37]} a4 {[%emt 0:03:25]} 56. Rd5 {[%emt 0:04:50]} Rxd5 {[%emt 0:06:03]} 57. cxd5 {[%emt 0:00:01]} Kf6 {[%emt 0:01:11]} 58. Kc4 {[%emt 0:00:18]} Ke7 {[%emt 0:01:00]} 59. Ra2 {[%emt 0:00:25]} Rc1+ {[%emt 0:03:02]} 60. Kd4 {[%emt 0:00:07]} Rd1+ {[%emt 0:00:13]} 61. Ke5 {[%emt 0:01:19]} Re1+ {[%emt 0:00:06]} 62. Kf4 {[%emt 0:00:06]} Rd1 {[%emt 0:00:09]} 63. Rxa4 {[%emt 0:02:22]} Rxd5 {[%emt 0:00:04]} 64. g4 {[%emt 0:00:14]} Kf6 {[%emt 0:00:23]} 65. h4 {[%emt 0:00:05]} Kg7 {[%emt 0:00:13]} 66. Ra6 {[%emt 0:00:46]} Rc5 {[%emt 0:00:07]} 67. Kg3 {[%emt 0:00:58]} Rb5 {[%emt 0:00:05]} 68. Ra3 {[%emt 0:00:20]} Rc5 {[%emt 0:00:28]} 69. f4 {[%emt 0:00:10]} Rb5 {[%emt 0:00:14]} 70. Rf3 {[%emt 0:00:08]} Rc5 {[%emt 0:00:47]} 71. g5 {[%emt 0:00:43]} Rd5 {[%emt 0:02:02]} 72. f5 {[%emt 0:01:43]} gxf5 {[%emt 0:00:08]} 73. h5 {[%emt 0:00:07]} f6 {[%emt 0:00:45]} 74. g6 {[%emt 0:00:31]} f4+ {[%emt 0:00:36]} 75. Kg4 {[%emt 0:00:36]} Rg5+ {[%emt 0:00:04]} 76. Kxf4 {[%emt 0:01:11]} Rxh5 {[%emt 0:00:05]} 77. Rg3 {[%emt 0:00:08]} Rh6 {[%emt 0:00:05]} 78. Kf5 {[%emt 0:00:07]} Rh5+ {[%emt 0:00:05]} 79. Ke4 {[%emt 0:15:38]} 1/2-1/2

[Event "FIDE World Cup O12-B 2024"]
[Site "Batumi"]
[Date "2024.06.24"]
[Round "2.4"]
[White "Batbaatar, Baatar"]
[Black "Garakhanov, Shamsi"]
[Result "1-0"]
[ECO "B90"]
[WhiteElo "1724"]
[BlackElo "1884"]
[Annotator "NA RC"]
[PlyCount "85"]
[EventDate "2024.06.23"]
[EventType "swiss"]
[EventCountry "GEO"]
[SourceTitle "playchess.com"]
[Source "ChessBase"]
[SourceQuality "1"]
[TimeControl "5400+30"]

1. e4 {[%emt 0:00:03]} c5 {[%emt 0:00:02]} 2. Nf3 {[%emt 0:00:07]} d6 {[%emt 0:00:02]} 3. d4 {[%emt 0:00:09]} cxd4 {[%emt 0:00:05]} 4. Nxd4 {[%emt 0:00:06]} Nf6 {[%emt 0:00:04]} 5. Nc3 {[%emt 0:00:12]} a6 {[%emt 0:00:04]} 6. Be3 {[%emt 0:00:08]} e5 {[%emt 0:01:19]} 7. Nf3 {[%emt 0:00:11]} Be7 {[%emt 0:00:49]} 8. Bc4 {[%emt 0:00:24]} O-O {[%emt 0:08:37]} 9. O-O {[%emt 0:00:25]} Nbd7 {[%emt 0:02:35] B90: Sicilian Najdorf: Unusual White 6th moves, 6 Be3 Ng4 and 6 Be3 e5.} 10. a4 {[%emt 0:04:47]} Qc7 {[%emt 0:02:29]} 11. Qe2 {[%emt 0:04:06]} Nc5 {[%emt 0:04:28]} 12. Bg5 {[%emt 0:08:08]} Ne6 {[%emt 0:05:10]} 13. Bxf6 {[%emt 0:07:01]} Nf4 {[%emt 0:01:53]} 14. Qe3 {[%emt 0:01:08]} Bxf6 {[%emt 0:00:16]} 15. Ba2 {[%emt 0:01:21]} Be6 {[%emt 0:12:57]} 16. g3 {[%emt 0:01:33]} Ng6 {[%emt 0:01:08]} 17. Nd5 {[%emt 0:06:37]} Bxd5 {[%emt 0:00:21]} 18. Bxd5 {[%emt 0:00:13]} Ne7 {[%emt 0:00:17]} 19. Bb3 {[%emt 0:00:31]} b5 {[%emt 0:02:09]} 20. Qd3 {[%emt 0:05:06]} Rab8 {[%emt 0:09:24]} 21. axb5 {[%emt 0:02:32]} axb5 {[%emt 0:46:51]} 22. Ra6 {[%emt 0:01:55]} Rfd8 {[%emt 0:00:00]} 23. Rfa1 {[%emt 0:00:47]} Qc5 {[%emt 0:00:00]} 24. Ra7 {[%emt 0:03:40]} d5 {[%emt 0:00:00] [#]} 25. exd5 $1 {[%emt 0:02:03]} Nxd5 $16 {[%emt 0:00:00]} 26. Qe4 {[%emt 0:01:33]} Nc7 {[%emt 0:00:00]} 27. h4 {[%emt 0:05:58]} Rd7 {[%emt 0:00:00]} 28. Qf5 {[%emt 0:01:14]} Rbd8 {[%emt 0:00:00]} 29. c3 {[%emt 0:04:51]} Re7 {[%emt 0:00:00]} 30. Bc2 {[%emt 0:00:45]} Kf8 {[%emt 0:00:00]} 31. Qxh7 {[%emt 0:03:55]} g6 {[%emt 0:00:00]} 32. Ng5 {[%emt 0:02:13]} Qc6 {[%emt 0:00:00]} 33. Bb3 {[%emt 0:03:52]} Rdd7 {[%emt 0:00:00]} 34. h5 {[%emt 0:05:26]} gxh5 {[%emt 0:00:00]} 35. Qh6+ {[%emt 0:02:03]} Ke8 {[%emt 0:00:00]} 36. Nh7 {[%emt 0:00:35]} Rd6 {[%emt 0:00:00]} 37. Qf8+ {[%emt 0:01:08]} Kd7 {[%emt 0:00:00]} 38. Qb8 {[%emt 0:00:08]} Re8 {[%emt 0:00:11]} 39. Nf8+ {[%emt 0:00:31]} Rxf8 {[%emt 0:00:43]} 40. Qxf8 {[%emt 0:00:12]} Be7 {[%emt 0:00:17]} 41. Qxf7 {[%emt 0:00:11]} Qc5 {[%emt 0:02:53]} 42. Qf5+ {[%emt 0:00:52]} Kc6 {[%emt 0:00:19]} 43. Qc8 {[%emt 0:23:20]} 1-0

[Event "FIDE World Cup O12-B 2024"]
[Site "Batumi"]
[Date "2024.06.24"]
[Round "2.5"]
[White "Qu, Haoming"]
[Black "Amreyev, Azat"]
[Result "1-0"]
[ECO "C05"]
[WhiteElo "1877"]
[BlackElo "1704"]
[Annotator "NA RC"]
[PlyCount "93"]
[EventDate "2024.06.23"]
[EventType "swiss"]
[EventCountry "GEO"]
[SourceTitle "playchess.com"]
[Source "ChessBase"]
[SourceQuality "1"]
[TimeControl "5400+30"]

1. e4 {[%emt 0:00:03]} e6 {[%emt 0:00:48]} 2. d4 {[%emt 0:01:11]} d5 {[%emt 0:00:06]} 3. Nd2 {[%emt 0:00:07]} Nf6 {[%emt 0:00:08]} 4. e5 {[%emt 0:00:05]} Nfd7 {[%emt 0:00:08]} 5. c3 {[%emt 0:00:10]} c5 {[%emt 0:00:21]} 6. f4 {[%emt 0:00:05]} Nc6 {[%emt 0:00:25]} 7. Ndf3 {[%emt 0:00:07]} Qb6 {[%emt 0:00:38]} 8. a3 {[%emt 0:00:46] is now more promising than 8.g3.} cxd4 {[%emt 0:00:15]} 9. cxd4 {[%emt 0:00:20]} Na5 {[%emt 0:00:21] C05: French Tarrasch: 3...Nf6 4 e5 Nfd7, 5 f4 and 5 Bd3 sidelines.} 10. Ne2 {[%emt 1:32:36]} Qb3 {[%emt 0:01:37]} 11. Qxb3 $146 {[%emt 0:00:00]} ({Predecessor:} 11. Qd2 Nc4 12. Qc3 Qxc3+ 13. Nxc3 a6 14. b3 Na5 15. Rb1 Nb6 16. Bd3 Bd7 17. Na2 {½-½ Swiercz,D (2565)-Vallejo Pons,F (2693) EU-ch 13th Plovdiv 2012 (3)}) 11... Nxb3 {[%emt 0:00:07]} 12. Rb1 {[%emt 0:00:00]} Nb6 {[%emt 0:06:21]} 13. Nd2 {[%emt 0:00:00]} Nxd2 {[%emt 0:00:50]} 14. Kxd2 {[%emt 0:00:00]} Nc4+ {[%emt 0:01:04]} 15. Kd1 {[%emt 0:00:00]} Bd7 {[%emt 0:00:47]} 16. Nc3 {[%emt 0:00:00]} Rc8 {[%emt 0:01:32]} 17. Bd2 {[%emt 0:00:00]} f5 {[%emt 1:23:32]} 18. Bd3 {[%emt 0:00:00]} Be7 {[%emt 0:00:00]} 19. Ke2 {[%emt 0:00:00]} O-O {[%emt 0:00:00]} 20. Rhg1 {[%emt 0:00:00]} Be8 {[%emt 0:00:00]} 21. h3 {[%emt 0:00:00]} Bd8 {[%emt 0:00:00]} 22. Na2 {[%emt 0:00:00]} Bb6 {[%emt 0:00:00]} 23. Bc3 {[%emt 0:00:00]} Kh8 {[%emt 0:00:00]} (23... g5 $15) 24. Rbc1 {[%emt 0:00:00]} (24. Bb4 $11 Rg8 25. b3) 24... a5 $11 {[%emt 0:00:00]} 25. Kf3 {[%emt 0:00:00]} Bb5 {[%emt 0:04:00]} 26. Rgd1 {[%emt 0:00:00]} Ba4 {[%emt 0:00:00]} 27. Bc2 {[%emt 0:08:30]} Bc6 {[%emt 0:00:00]} 28. a4 {[%emt 0:00:00]} Bd8 {[%emt 0:00:00]} 29. b3 {[%emt 0:00:00]} Na3 {[%emt 0:00:00]} 30. Bd3 {[%emt 0:00:00]} b5 {[%emt 0:00:00]} 31. Bb2 {[%emt 0:00:00]} b4 {[%emt 0:00:00]} 32. Bxa3 {[%emt 0:00:00]} bxa3 {[%emt 0:00:00]} 33. Bb5 {[%emt 0:00:00]} Bb7 {[%emt 0:00:00]} 34. Bd7 {[%emt 0:00:00]} Rb8 {[%emt 0:00:00]} 35. Bxe6 {[%emt 0:00:00]} Ba8 {[%emt 0:00:00]} 36. Rd3 {[%emt 0:00:00]} Bb6 {[%emt 0:00:00]} 37. g4 {[%emt 0:00:00]} fxg4+ {[%emt 0:00:00]} 38. hxg4 {[%emt 0:00:00]} Bd8 {[%emt 0:00:00]} 39. f5 {[%emt 0:00:00]} Rb6 {[%emt 0:00:00]} 40. Kg2 {[%emt 0:00:00]} g6 {[%emt 0:00:00]} 41. Rh3 {[%emt 0:00:00]} gxf5 {[%emt 0:00:00]} 42. gxf5 {[%emt 0:00:00]} Bc6 {[%emt 0:00:00]} 43. Rch1 {[%emt 0:00:17]} Rb7 {[%emt 0:00:00]} 44. Rc1 {[%emt 0:02:24]} Bxa4 {[%emt 0:00:00]} 45. bxa4 {[%emt 0:00:14]} Rb2+ {[%emt 0:00:00]} 46. Kf3 {[%emt 0:00:04]} Rxa2 {[%emt 0:00:00]} 47. Rch1 {[%emt 0:00:01]} 1-0

[Event "FIDE World Cup O12-B 2024"]
[Site "Batumi"]
[Date "2024.06.24"]
[Round "2.6"]
[White "Kakavand, Ramtin"]
[Black "Khubuluri, Zaal"]
[Result "1-0"]
[ECO "B52"]
[WhiteElo "2059"]
[BlackElo "1501"]
[Annotator "NA RC"]
[PlyCount "83"]
[EventDate "2024.06.23"]
[EventType "swiss"]
[EventCountry "GEO"]
[SourceTitle "playchess.com"]
[Source "ChessBase"]
[SourceQuality "1"]
[TimeControl "5400+30"]

1. e4 {[%emt 0:00:02]} c5 {[%emt 0:00:09]} 2. Nf3 {[%emt 0:00:07]} d6 {[%emt 0:03:17]} 3. Bb5+ {[%emt 0:00:07]} Bd7 {[%emt 0:00:09]} 4. Bxd7+ {[%emt 0:00:05]} Qxd7 {[%emt 0:00:05]} 5. O-O {[%emt 0:00:08]} Nf6 {[%emt 0:00:37]} 6. Re1 {[%emt 0:00:02]} Nc6 {[%emt 0:02:20]} 7. c3 {[%emt 0:00:06]} e6 {[%emt 0:00:35]} 8. d4 {[%emt 0:00:07]} cxd4 {[%emt 0:00:13]} 9. cxd4 {[%emt 0:00:02]} d5 {[%emt 0:00:21]} 10. e5 {[%emt 0:00:01]} Ne4 {[%emt 0:00:18]} 11. a3 {[%emt 0:00:07]} Be7 {[%emt 0:01:02]} 12. Qd3 {[%emt 0:00:06]} O-O {[%emt 0:01:43] B52: Sicilian: Moscow Variation with 3...Bd7.} 13. Nbd2 {[%emt 0:00:09]} Nxd2 {[%emt 0:00:12]} 14. Bxd2 {[%emt 0:00:01]} Rac8 {[%emt 0:01:36]} 15. h4 {[%emt 0:01:48]} h6 {[%emt 0:08:27]} 16. h5 {[%emt 0:06:08]} Qd8 {[%emt 0:09:25]} 17. Rac1 {[%emt 0:03:07]} Qb6 {[%emt 0:04:01]} 18. b4 {[%emt 0:05:38]} a6 {[%emt 0:04:01]} 19. Be3 {[%emt 0:02:02]} Qd8 {[%emt 0:01:37]} (19... Na7 $15) 20. Nh2 {[%emt 0:02:12]} Bg5 {[%emt 0:03:11]} 21. f4 {[%emt 0:03:13]} Bh4 {[%emt 0:01:43]} 22. Rf1 {[%emt 0:00:01]} (22. Re2 {feels stronger.}) 22... Bg3 {[%emt 0:03:26]} 23. Nf3 {[%emt 0:02:17]} Ne7 {[%emt 0:06:44]} 24. Rc5 {[%emt 0:11:03]} Rxc5 {[%emt 0:02:53]} 25. bxc5 {[%emt 0:00:11]} Nf5 {[%emt 0:00:39]} 26. Rb1 {[%emt 0:03:06]} Qc7 {[%emt 0:01:59]} 27. Bd2 {[%emt 0:00:25]} Rb8 {[%emt 0:02:49]} 28. Rb6 {[%emt 0:00:42]} Rd8 {[%emt 0:06:04]} 29. Qb3 {[%emt 0:09:25]} Rd7 {[%emt 0:08:38]} 30. Qc3 {[%emt 0:00:14]} Re7 {[%emt 0:01:04]} 31. Nh2 {[%emt 0:00:39]} Kh7 {[%emt 0:02:34]} 32. Nf1 {[%emt 0:00:09]} Bh4 {[%emt 0:04:02]} 33. g3 {[%emt 0:00:08]} Bxg3 {[%emt 0:00:41]} 34. Nxg3 {[%emt 0:00:06]} Nxg3 {[%emt 0:00:27]} 35. Qxg3 {[%emt 0:00:05]} Rd7 {[%emt 0:02:52]} 36. Qb3 {[%emt 0:00:31]} Re7 {[%emt 0:00:29]} 37. Qb1+ {[%emt 0:00:01]} g6 {[%emt 0:00:57]} 38. Rb3 {[%emt 0:00:04]} Kh8 {[%emt 0:00:33]} 39. Rh3 {[%emt 0:00:27]} Kh7 $18 {[%emt 0:00:49]} 40. Rg3 {[%emt 0:00:07]} Kh8 {[%emt 0:01:00]} 41. hxg6 {[%emt 0:00:07]} fxg6 {[%emt 0:00:11]} 42. Qxg6 {[%emt 0:00:06]} 1-0